fUST/lending_fUST_20240612
["ID","MTS","AMOUNT","RATE_DAILY","PERIOD"]
[329242122,1718197847451,-500.0,0.00016438,2]
[329242124,1718197847462,-500.0,0.00016438,2]
[329242126,1718197847472,-503.41070682,0.00016438,2]
[329242127,1718197847483,-500.0,0.00016438,2]
[329242129,1718197847495,-500.0,0.00016438,2]
[329242131,1718197847506,-500.0,0.00016438,2]
[329242133,1718197847517,-500.0,0.00016438,2]
[329242135,1718197847530,-500.0,0.00016438,2]
[329242137,1718197847541,-500.0,0.00016438,2]
[329242139,1718197847551,-501.93232064,0.00016438,2]
[329242141,1718197847568,-500.0,0.00016438,2]
[329242143,1718197847584,-384.37766632,0.00016438,2]
[329242188,1718197848124,-115.62233368,0.00016438,2]
[329242190,1718197848139,-502.42748652,0.00016438,2]
[329242192,1718197848149,-500.0,0.00016438,2]
[329242194,1718197848162,-51.57460828,0.00016438,2]
[329242196,1718197848177,-448.42539172,0.00016438,2]
[329242198,1718197848192,-500.0,0.00016438,2]
[329242200,1718197848203,-500.0,0.00016438,2]
[329242202,1718197848216,-500.0,0.00016438,2]
[329242203,1718197848227,-500.0,0.00016438,2]
[329242205,1718197848239,-350.82201875,0.00016438,2]
[329242207,1718197848251,-500.0,0.00016438,2]
[329242209,1718197848265,-500.0,0.00016438,2]
[329242213,1718197848297,-500.0,0.00016438,2]
[329242214,1718197848316,-501.02754867,0.00016438,2]
[329242216,1718197848335,-500.0,0.00016438,2]
[329242219,1718197848354,-500.0,0.00016438,2]
[329242221,1718197848364,-500.0,0.00016438,2]
[329242223,1718197848379,-503.69079928,0.00016438,2]
[329242225,1718197848390,-500.0,0.00016438,2]
[329242227,1718197848401,-500.0,0.00016438,2]
[329242229,1718197848412,-500.0,0.00016438,2]
[329242231,1718197848423,-500.0,0.00016438,2]
[329242233,1718197848434,-501.74103468,0.00016438,2]
[329242235,1718197848449,-500.0,0.00016438,2]
[329242237,1718197848460,-500.0,0.00016438,2]
[329242239,1718197848472,-500.0,0.00016438,2]
[329242241,1718197848491,-500.0,0.00016438,2]
[329242243,1718197848504,-500.0,0.00016438,2]
[329242245,1718197848523,-500.0,0.00016438,2]
[329242247,1718197848537,-395.63674927,0.00016438,2]
[329242250,1718197848555,-500.0,0.00016438,2]
[329242252,1718197848579,-500.0,0.00016438,2]
[329242254,1718197848593,-500.0,0.00016438,2]
[329242255,1718197848605,-500.0,0.00016438,2]
[329242257,1718197848616,-500.0,0.00016438,2]
[329242259,1718197848627,-502.79293394,0.00016438,2]
[329242261,1718197848638,-500.0,0.00016438,2]
[329242263,1718197848650,-500.0,0.00016438,2]
[329242265,1718197848661,-500.0,0.00016438,2]
[329242267,1718197848672,-500.0,0.00016438,2]
[329242269,1718197848683,-500.0,0.00016438,2]
[329242271,1718197848694,-500.0,0.00016438,2]
[329242273,1718197848707,-500.0,0.00016438,2]
[329242275,1718197848721,-500.0,0.00016438,2]
[329242277,1718197848732,-500.0,0.00016438,2]
[329242279,1718197848743,-500.0,0.00016438,2]
[329242281,1718197848755,-500.0,0.00016438,2]
[329242283,1718197848768,-500.0,0.00016438,2]
[329242285,1718197848795,-417.57360542,0.00016438,2]
[329242287,1718197848807,-500.0,0.00016438,2]
[329242289,1718197848818,-500.0,0.00016438,2]
[329242291,1718197848832,-500.0,0.00016438,2]
[329242293,1718197848843,-500.0,0.00016438,2]
[329242295,1718197848854,-500.0,0.00016438,2]
[329242297,1718197848864,-500.0,0.00016438,2]
[329242299,1718197848875,-500.0,0.00016438,2]
[329242301,1718197848886,-583.99663135,0.00016438,2]
[329242303,1718197848897,-500.0,0.00016438,2]
[329242305,1718197848908,-503.46470665,0.00016438,2]
[329242307,1718197848919,-500.0,0.00016438,2]
[329242309,1718197848930,-502.6169118,0.00016438,2]
[329242311,1718197848941,-500.0,0.00016438,2]
[329242313,1718197848951,-500.0,0.00016438,2]
[329242315,1718197848962,-500.0,0.00016438,2]
[329242317,1718197848974,-500.0,0.00016438,2]
[329242332,1718197849140,-500.0,0.00016438,2]
[329242335,1718197849167,-500.0,0.00016438,2]
[329242337,1718197849179,-172.43575819,0.00016438,2]
[329242339,1718197849192,-642.48336699,0.00016438,2]
[329242341,1718197849204,-500.0,0.00016438,2]
[329242343,1718197849215,-500.0,0.00016438,2]
[329242345,1718197849226,-500.0,0.00016438,2]
[329242347,1718197849237,-500.0,0.00016438,2]
[329242349,1718197849248,-500.0,0.00016438,2]
[329242351,1718197849259,-500.0,0.00016438,2]
[329242353,1718197849270,-500.0,0.00016438,2]
[329242355,1718197849282,-500.0,0.00016438,2]
[329242356,1718197849293,-500.36327751,0.00016438,2]
[329242358,1718197849304,-509.88633484,0.00016438,2]
[329242360,1718197849315,-500.0,0.00016438,2]
[329242362,1718197849331,-454.08217856,0.00016438,2]
[329242364,1718197849343,-500.0,0.00016438,2]
[329242366,1718197849353,-500.0,0.00016438,2]
[329242368,1718197849364,-500.0,0.00016438,2]
[329242370,1718197849375,-500.0,0.00016438,2]
[329242372,1718197849386,-500.0,0.00016438,2]
[329242374,1718197849397,-729.33,0.00016438,2]
[329242376,1718197849408,-500.0,0.00016438,2]
[329242378,1718197849419,-500.0,0.00016438,2]
[329242380,1718197849429,-500.0,0.00016438,2]
[329242382,1718197849440,-500.0,0.00016438,2]
[329242384,1718197849451,-500.0,0.00016438,2]
[329242386,1718197849462,-500.0,0.00016438,2]
[329242388,1718197849473,-500.0,0.00016438,2]
[329242390,1718197849484,-508.5,0.00016438,2]
[329242392,1718197849495,-245.77751905,0.00016438,2]
[329242394,1718197849505,-500.0,0.00016438,2]
[329242397,1718197849519,-500.0,0.00016438,2]
[329242399,1718197849532,-500.0,0.00016438,2]
[329242401,1718197849545,-500.0,0.00016438,2]
[329242403,1718197849556,-372.6,0.00016438,2]
[329242405,1718197849566,-500.0,0.00016438,2]
[329242407,1718197849581,-500.0,0.00016438,2]
[329242409,1718197849591,-557.46,0.00016438,2]
[329242411,1718197849601,-500.0,0.00016438,2]
[329242413,1718197849612,-500.0,0.00016438,2]
[329242415,1718197849623,-500.0,0.00016438,2]
[329242417,1718197849634,-750.71,0.00016438,2]
[329242419,1718197849644,-4386.8,0.00016438,2]
[329242420,1718197849654,-7100.05,0.00016438,2]
[329242422,1718197849665,-228.45343349,0.00016438,2]
[329242424,1718197849676,-856.4,0.00016438,2]
[329242426,1718197849687,-500.0,0.00016438,2]
[329242428,1718197849698,-1402.57,0.00016438,2]
[329242430,1718197849708,-500.0,0.00016438,2]
[329242432,1718197849719,-1793.11,0.00016438,2]
[329242434,1718197849730,-751.77,0.00016438,2]
[329242436,1718197849741,-502.94769775,0.00016438,2]
[329242438,1718197849753,-500.0,0.00016438,2]
[329242440,1718197849765,-265.7993025,0.00016438,2]
[329242441,1718197849778,-209.36471688,0.00016438,2]
[329242444,1718197849803,-508.67,0.00016438,2]
[329242446,1718197849815,-537.06028038,0.00016438,2]
[329242448,1718197849829,-489.86295763,0.00016438,2]
[329242449,1718197849840,-500.0,0.00016438,2]
[329242451,1718197849850,-500.0,0.00016438,2]
[329242453,1718197849860,-500.0,0.00016438,2]
[329242456,1718197849871,-500.0,0.00016438,2]
[329242458,1718197849884,-500.0,0.00016438,2]
[329242459,1718197849895,-500.0,0.00016438,2]
[329242461,1718197849905,-593.26989627,0.00016438,2]
[329242464,1718197849918,-500.0,0.00016438,2]
[329242465,1718197849929,-500.0,0.00016438,2]
[329242468,1718197849940,-500.0,0.00016438,2]
[329242470,1718197849952,-500.0,0.00016438,2]
[329242472,1718197849963,-510.89382712,0.00016438,2]
[329242473,1718197849973,-500.0,0.00016438,2]
[329242474,1718197849984,-4034.96,0.00016438,2]
[329242475,1718197849994,-505.79444727,0.00016438,2]
[329242476,1718197850005,-557.43522132,0.00016438,2]
[329242477,1718197850015,-396.13811278,0.00016438,2]
[329242478,1718197850025,-333.0922486,0.00016438,2]
[329242479,1718197850037,-16006.71,0.00016438,2]
[329242480,1718197850047,-500.0,0.00016438,2]
[329242481,1718197850059,-500.0,0.00016438,2]
[329242482,1718197850074,-1164.77,0.00016438,2]
[329242483,1718197850085,-504.29185432,0.00016438,2]
[329242484,1718197850099,-500.0,0.00016438,2]
[329242485,1718197850111,-500.0,0.00016438,2]
[329242487,1718197850123,-502.06598446,0.00016438,2]
[329242489,1718197850134,-4436.68,0.00016438,2]
[329242491,1718197850146,-500.0,0.00016438,2]
[329242493,1718197850157,-500.0,0.00016438,2]
[329242495,1718197850173,-500.0,0.00016438,2]
[329242497,1718197850204,-11333.13,0.00016438,2]
[329242499,1718197850228,-500.0,0.00016438,2]
[329242501,1718197850241,-500.90002089,0.00016438,2]
[329242503,1718197850254,-500.0,0.00016438,2]
[329242505,1718197850265,-529.0065792,0.00016438,2]
[329242507,1718197850275,-500.0,0.00016438,2]
[329242509,1718197850287,-500.0,0.00016438,2]
[329242511,1718197850297,-500.0,0.00016438,2]
[329242513,1718197850308,-500.0,0.00016438,2]
[329242515,1718197850318,-500.0,0.00016438,2]
[329242517,1718197850335,-516.86107398,0.00016438,2]
[329242519,1718197850345,-506.32843551,0.00016438,2]
[329242521,1718197850355,-616.3580274,0.00016438,2]
[329242523,1718197850366,-500.0,0.00016438,2]
[329242525,1718197850383,-500.0,0.00016438,2]
[329242527,1718197850393,-500.0,0.00016438,2]
[329242529,1718197850404,-500.0,0.00016438,2]
[329242531,1718197850415,-500.0,0.00016438,2]
[329242533,1718197850426,-512.11720004,0.00016438,2]
[329242535,1718197850437,-505.88975848,0.00016438,2]
[329242537,1718197850447,-500.0,0.00016438,2]
[329242539,1718197850457,-500.0,0.00016438,2]
[329242540,1718197850468,-500.0,0.00016438,2]
[329242542,1718197850479,-500.0,0.00016438,2]
[329242544,1718197850489,-500.0,0.00016438,2]
[329242546,1718197850500,-1515.09,0.00016438,2]
[329242548,1718197850511,-500.0,0.00016438,2]
[329242550,1718197850521,-500.0,0.00016438,2]
[329242552,1718197850532,-500.0,0.00016438,2]
[329242554,1718197850542,-500.0,0.00016438,2]
[329242556,1718197850553,-500.0,0.00016438,2]
[329242558,1718197850563,-256.5595666,0.00016438,2]
[329242560,1718197850576,-500.0,0.00016438,2]
[329242562,1718197850587,-500.0,0.00016438,2]
[329242564,1718197850598,-500.0,0.00016438,2]
[329242566,1718197850608,-500.0,0.00016438,2]
[329242568,1718197850619,-500.0,0.00016438,2]
[329242570,1718197850631,-500.0,0.00016438,2]
[329242572,1718197850643,-500.0,0.00016438,2]
[329242575,1718197850653,-500.0,0.00016438,2]
[329242577,1718197850665,-306.0,0.000165,2]
[329242579,1718197850676,-153.0,0.000165,2]
[329242581,1718197850687,-151.0,0.000167,2]
[329242583,1718197850697,-500.0,0.00016711,2]
[329242585,1718197850707,-500.0,0.00016711,2]
[329242587,1718197850717,-377.82311577,0.00016711,2]
[329242589,1718197850727,-511.39106394,0.00016712,2]
[329242591,1718197850738,-250.0,0.00016712,2]
[329242592,1718197850748,-511.06814897,0.00016712,2]
[329242595,1718197850760,-500.0,0.00016712,4]
[329242596,1718197850770,-500.0,0.00016712,2]
[329242599,1718197850798,-500.0,0.00016712,2]
[329242601,1718197850809,-500.0,0.00016712,2]
[329242603,1718197850819,-500.0,0.00016712,2]
[329242605,1718197850831,-500.0,0.00016712,2]
[329242607,1718197850842,-500.0,0.00016712,2]
[329242609,1718197850853,-491.36308645,0.00016712,2]
[329242611,1718197850864,-514.81433297,0.00016712,2]
[329242613,1718197850875,-500.0,0.00016712,2]
[329242615,1718197850886,-500.0,0.00016712,2]
[329242617,1718197850896,-500.0,0.00016712,2]
[329242619,1718197850906,-500.0,0.00016712,2]
[329242621,1718197850917,-505.38485582,0.00016712,2]
[329242623,1718197850927,-500.0,0.00016712,2]
[329242625,1718197850937,-500.0,0.00016712,2]
[329242627,1718197850947,-500.0,0.00016712,2]
[329242629,1718197850957,-500.0,0.00016712,2]
[329242631,1718197850968,-500.0,0.00016712,2]
[329242633,1718197850977,-500.0,0.00016712,2]
[329242634,1718197850988,-500.0,0.00016712,2]
[329242636,1718197850998,-500.0,0.00016712,2]
[329242638,1718197851008,-500.0,0.00016712,2]
[329242640,1718197851018,-429.94164619,0.00016712,2]
[329242642,1718197851028,-500.0,0.00016712,2]
[329242644,1718197851039,-500.0,0.00016712,2]
[329242646,1718197851050,-500.0,0.00016712,2]
[329242648,1718197851060,-500.0,0.00016712,2]
[329242650,1718197851071,-502.8325886,0.00016712,2]
[329242652,1718197851082,-500.0,0.00016712,2]
[329242654,1718197851094,-505.72840727,0.00016712,2]
[329242656,1718197851104,-500.0,0.00016712,2]
[329242658,1718197851116,-500.0,0.00016712,2]
[329242660,1718197851127,-500.0,0.00016712,2]
[329242662,1718197851137,-500.0,0.00016712,2]
[329242664,1718197851147,-449.0730593,0.00016712,2]
[329242666,1718197851159,-500.0,0.00016712,2]
[329242668,1718197851169,-500.0,0.00016712,2]
[329242670,1718197851180,-500.0,0.00016712,2]
[329242672,1718197851193,-500.0,0.00016712,2]
[329242674,1718197851205,-500.0,0.00016712,2]
[329242676,1718197851215,-500.0,0.00016712,2]
[329242678,1718197851226,-500.0,0.00016712,2]
[329242680,1718197851236,-500.0,0.00016712,2]
[329242682,1718197851246,-500.0,0.00016712,2]
[329242684,1718197851256,-500.0,0.00016712,2]
[329242686,1718197851267,-500.0,0.00016712,2]
[329242688,1718197851278,-500.0,0.00016712,2]
[329242689,1718197851288,-506.77970984,0.00016712,2]
[329242692,1718197851300,-500.0,0.00016712,2]
[329242694,1718197851312,-729.33,0.00016712,2]
[329242695,1718197851324,-500.0,0.00016712,2]
[329242697,1718197851334,-500.0,0.00016712,2]
[329242699,1718197851345,-500.0,0.00016712,2]
[329242701,1718197851356,-500.0,0.00016712,2]
[329242703,1718197851366,-500.0,0.00016712,2]
[329242705,1718197851377,-508.5,0.00016712,2]
[329242707,1718197851388,-500.0,0.00016712,2]
[329242709,1718197851399,-500.0,0.00016712,2]
[329242711,1718197851410,-500.0,0.00016712,2]
[329242713,1718197851420,-750.71,0.00016712,2]
[329242715,1718197851432,-4386.8,0.00016712,2]
[329242717,1718197851443,-7100.05,0.00016712,2]
[329242719,1718197851453,-856.4,0.00016712,2]
[329242721,1718197851463,-500.0,0.00016712,2]
[329242723,1718197851473,-1402.57,0.00016712,2]
[329242725,1718197851484,-1793.11,0.00016712,2]
[329242727,1718197851495,-751.77,0.00016712,2]
[329242729,1718197851506,-508.67,0.00016712,2]
[329242731,1718197851516,-500.0,0.00016712,2]
[329242733,1718197851528,-500.0,0.00016712,2]
[329242734,1718197851541,-500.0,0.00016712,2]
[329242736,1718197851552,-500.0,0.00016712,2]
[329242738,1718197851564,-541.16256053,0.00016712,2]
[329242740,1718197851580,-500.0,0.00016712,2]
[329242742,1718197851590,-500.0,0.00016712,2]
[329242744,1718197851601,-500.0,0.00016712,2]
[329242746,1718197851611,-4034.96,0.00016712,2]
[329242748,1718197851623,-16006.71,0.00016712,2]
[329242750,1718197851636,-1164.77,0.00016712,2]
[329242752,1718197851647,-500.0,0.00016712,2]
[329242754,1718197851659,-4436.68,0.00016712,2]
[329242756,1718197851670,-500.0,0.00016712,2]
[329242758,1718197851681,-11333.13,0.00016712,2]
[329242760,1718197851691,-500.0,0.00016712,2]
[329242762,1718197851702,-500.0,0.00016712,2]
[329242764,1718197851713,-273.25281593,0.00016712,2]
[329242766,1718197851723,-500.0,0.00016712,2]
[329242768,1718197851734,-500.0,0.00016712,2]
[329242770,1718197851745,-500.0,0.00016712,2]
[329242772,1718197851755,-500.0,0.00016712,2]
[329242774,1718197851766,-500.0,0.00016712,2]
[329242776,1718197851778,-500.0,0.00016712,2]
[329242778,1718197851795,-500.0,0.00016712,2]
[329242780,1718197851806,-500.0,0.00016712,2]
[329242782,1718197851816,-500.0,0.00016712,2]
[329242784,1718197851835,-506.30707113,0.00016712,2]
[329242786,1718197851845,-1515.09,0.00016712,2]
[329242788,1718197851856,-500.0,0.00016712,2]
[329242790,1718197851866,-500.0,0.00016712,2]
[329242792,1718197851877,-500.0,0.00016712,2]
[329242794,1718197851888,-1357.61443477,0.00016727,2]
[329242796,1718197851899,-153.0,0.00016958,2]
[329242798,1718197851909,-250.0,0.00016986,2]
[329242800,1718197851920,-500.0,0.00016986,4]
[329242802,1718197851930,-500.0,0.00016986,2]
[329242804,1718197851942,-439.67644935,0.00016986,2]
[329242806,1718197851954,-534.73163504,0.00016986,2]
[329242808,1718197851964,-500.0,0.00016986,2]
[329242810,1718197851975,-500.0,0.00016986,2]
[329242812,1718197851986,-629.86422011,0.00016986,2]
[329242814,1718197851996,-500.0,0.00016986,2]
[329242816,1718197852006,-508.73609276,0.00016986,2]
[329242818,1718197852018,-500.0,0.00016986,2]
[329242820,1718197852028,-506.34432331,0.00016986,2]
[329242822,1718197852039,-500.0,0.00016986,2]
[329242824,1718197852050,-500.0,0.00016986,2]
[329242826,1718197852062,-255.41723756,0.00016986,2]
[329242828,1718197852075,-613.1078874,0.00016986,2]
[329242830,1718197852086,-500.0,0.00016986,2]
[329242832,1718197852101,-500.0,0.00016986,2]
[329242834,1718197852111,-500.0,0.00016986,2]
[329242836,1718197852122,-500.0,0.00016986,2]
[329242838,1718197852134,-500.0,0.00016986,2]
[329242840,1718197852145,-500.0,0.00016986,2]
[329242842,1718197852156,-613.34,0.00016986,2]
[329242844,1718197852167,-500.0,0.00016986,2]
[329242845,1718197852178,-500.0,0.00016986,2]
[329242847,1718197852191,-500.0,0.00016986,2]
[329242849,1718197852202,-500.0,0.00016986,2]
[329242851,1718197852213,-500.0,0.00016986,2]
[329242853,1718197852224,-500.0,0.00016986,2]
[329242855,1718197852235,-500.0,0.00016986,2]
[329242857,1718197852246,-500.0,0.00016986,2]
[329242859,1718197852258,-500.0,0.00016986,2]
[329242861,1718197852269,-500.0,0.00016986,2]
[329242863,1718197852281,-160.34758777,0.00016986,2]
[329242865,1718197852291,-500.0,0.00016986,2]
[329242867,1718197852302,-167.38875341,0.00016986,2]
[329242869,1718197852313,-500.0,0.00016986,2]
[329242871,1718197852330,-729.33,0.00016986,2]
[329242873,1718197852340,-500.0,0.00016986,2]
[329242875,1718197852350,-500.0,0.00016986,2]
[329242877,1718197852360,-508.5,0.00016986,2]
[329242879,1718197852370,-500.0,0.00016986,2]
[329242881,1718197852380,-500.0,0.00016986,2]
[329242883,1718197852390,-750.71,0.00016986,2]
[329242885,1718197852401,-4386.8,0.00016986,2]
[329242886,1718197852412,-7100.05,0.00016986,2]
[329242888,1718197852423,-856.4,0.00016986,2]
[329242890,1718197852434,-500.0,0.00016986,2]
[329242892,1718197852444,-1402.57,0.00016986,2]
[329242894,1718197852455,-1793.11,0.00016986,2]
[329242896,1718197852466,-751.77,0.00016986,2]
[329242898,1718197852476,-508.67,0.00016986,2]
[329242900,1718197852487,-500.0,0.00016986,2]
[329242902,1718197852498,-500.0,0.00016986,2]
[329242904,1718197852510,-500.0,0.00016986,2]
[329242906,1718197852523,-500.0,0.00016986,2]
[329242908,1718197852534,-500.0,0.00016986,2]
[329242910,1718197852545,-500.0,0.00016986,2]
[329242912,1718197852555,-4034.96,0.00016986,2]
[329242915,1718197852567,-16006.71,0.00016986,2]
[329242916,1718197852580,-1164.77,0.00016986,2]
[329242919,1718197852592,-500.0,0.00016986,2]
[329242920,1718197852602,-4436.68,0.00016986,2]
[329242923,1718197852613,-500.0,0.00016986,2]
[329242924,1718197852623,-11333.13,0.00016986,2]
[329242926,1718197852633,-500.0,0.00016986,2]
[329242928,1718197852644,-500.0,0.00016986,2]
[329242930,1718197852654,-500.0,0.00016986,2]
[329242932,1718197852666,-500.0,0.00016986,2]
[329242934,1718197852677,-500.0,0.00016986,2]
[329242936,1718197852688,-500.0,0.00016986,2]
[329242938,1718197852699,-1515.09,0.00016986,2]
[329242940,1718197852710,-500.0,0.00016986,2]
[329242942,1718197852724,-500.0,0.00016986,2]
[329242944,1718197852735,-2200.0,0.00017,2]
[329242946,1718197852746,-1357.61443477,0.00017118,2]
[329242948,1718197852757,-1441.51323264,0.0001716,2]
[329242950,1718197852768,-250.0,0.0001726,2]
[329242952,1718197852796,-500.0,0.0001726,4]
[329242954,1718197852808,-500.0,0.0001726,2]
[329242956,1718197852821,-500.0,0.0001726,2]
[329242958,1718197852838,-500.0,0.0001726,2]
[329242960,1718197852848,-500.0,0.0001726,2]
[329242962,1718197852858,-500.0,0.0001726,2]
[329242964,1718197852869,-500.0,0.0001726,2]
[329242966,1718197852879,-500.0,0.0001726,2]
[329242968,1718197852889,-500.0,0.0001726,2]
[329242970,1718197852899,-500.0,0.0001726,2]
[329242972,1718197852909,-500.0,0.0001726,2]
[329242974,1718197852920,-500.0,0.0001726,2]
[329242976,1718197852932,-500.0,0.0001726,2]
[329242978,1718197852943,-500.0,0.0001726,2]
[329242980,1718197852953,-500.0,0.0001726,2]
[329242982,1718197852964,-500.0,0.0001726,2]
[329242984,1718197852975,-472.73,0.0001726,2]
[329242986,1718197852985,-500.0,0.0001726,2]
[329242987,1718197852996,-500.0,0.0001726,2]
[329242988,1718197853007,-500.0,0.0001726,2]
[329242989,1718197853017,-500.0,0.0001726,2]
[329242991,1718197853028,-500.0,0.0001726,2]
[329242993,1718197853039,-500.0,0.0001726,2]
[329242995,1718197853050,-729.33,0.0001726,2]
[329242997,1718197853060,-500.0,0.0001726,2]
[329242999,1718197853071,-599.88311515,0.0001726,2]
[329243001,1718197853087,-508.5,0.0001726,2]
[329243003,1718197853101,-500.0,0.0001726,2]
[329243005,1718197853112,-750.71,0.0001726,2]
[329243007,1718197853122,-4386.8,0.0001726,2]
[329243009,1718197853133,-7100.05,0.0001726,2]
[329243011,1718197853144,-856.4,0.0001726,2]
[329243012,1718197853154,-500.0,0.0001726,2]
[329243013,1718197853293,-1402.57,0.0001726,2]
[329243014,1718197853304,-1793.11,0.0001726,2]
[329243015,1718197853315,-751.77,0.0001726,2]
[329243016,1718197853328,-508.67,0.0001726,2]
[329243017,1718197853338,-500.0,0.0001726,2]
[329243018,1718197853349,-500.0,0.0001726,2]
[329243020,1718197853359,-500.0,0.0001726,2]
[329243021,1718197853373,-500.0,0.0001726,2]
[329243022,1718197853386,-404.35118187,0.0001726,2]
[329243023,1718197853399,-4034.96,0.0001726,2]
[329243024,1718197853414,-3051.93452516,0.0001726,2]
[329243026,1718197853436,-277.5685,0.0001726,2]
[329243028,1718197853451,-1664.43195368,0.0001726,2]
[329243787,1718198131860,636.14163998,0.00016986,15]
[329243789,1718198254022,318.07081999,0.00016712,15]
[329243796,1718198352852,300.0,0.00023,30]
[329243800,1718198374757,159.03541,0.00016712,15]
[329243804,1718198492000,159.03540999,0.00016712,15]
[329243806,1718198556151,372.85667187,9.999e-05,2]
[329243808,1718198763570,686.61872356,9.999e-05,2]
[329243814,1718198952954,169.47,0.00010959,2]
[329243815,1718198963721,847.38,0.00010959,2]
[329243816,1718199016594,207.39262312,9.999e-05,10]
[329243877,1718199034609,-357.34557431,0.00014993,2]
[329243879,1718199034625,-15.51109756,0.00014993,2]
[329243881,1718199034636,-908.0013808,0.00014994,2]
[329243883,1718199034659,-374.207355,0.0001502,2]
[329243885,1718199034673,-7921.82449081,0.00015203,2]
[329243888,1718199034699,-1881.2570651,0.00015204,2]
[329243890,1718199034711,-281.83331494,0.00016272,2]
[329243892,1718199034724,-2030.08290709,0.00016338,2]
[329243893,1718199034743,-618.93226688,0.00016338,2]
[329244253,1718199049398,-642.39181168,0.00016338,2]
[329244255,1718199049409,-791.33874649,0.00016436,2]
[329244260,1718199049429,-571.82805522,0.00016436,2]
[329244263,1718199049476,-411.20432073,0.00016436,2]
[329244267,1718199049494,-692.0639849,0.00016436,2]
[329244268,1718199049520,-448.32308098,0.00016436,2]
[329244272,1718199049556,-114.82982369,0.00016436,2]
[329244275,1718199049572,-158.06038721,0.00016436,2]
[329244277,1718199049592,-309.92252015,0.00016436,2]
[329244279,1718199049607,-213.03415827,0.00016436,2]
[329244282,1718199049620,-285.76830085,0.00016436,2]
[329244286,1718199049653,-524.04857954,0.00016436,2]
[329244288,1718199049668,-155.01395126,0.00016436,2]
[329244291,1718199049681,-686.11358769,0.00016436,2]
[329244294,1718199049693,-282.49542241,0.00016436,2]
[329244296,1718199049707,-722.38007944,0.00016436,2]
[329244299,1718199049723,-208.63718054,0.00016436,10]
[329244302,1718199049736,-1853.86146306,0.00016437,2]
[329244305,1718199049747,-400.74537079,0.00016437,2]
[329244308,1718199049758,-309.9070279,0.00016437,2]
[329244311,1718199049769,-570.85957129,0.00016437,2]
[329244314,1718199049785,-183.63846185,0.00016437,2]
[329244317,1718199049798,-500.0,0.00016438,2]
[329244319,1718199049809,-563.93340625,0.00016438,2]
[329244322,1718199049825,-504.52496078,0.00016438,2]
[329244324,1718199049836,-500.0,0.00016438,2]
[329244326,1718199049847,-505.38485582,0.00016438,2]
[329244328,1718199049858,-500.0,0.00016438,2]
[329244330,1718199049871,-503.14175203,0.00016438,2]
[329244332,1718199049882,-500.0,0.00016438,2]
[329244334,1718199049900,-500.0,0.00016438,2]
[329244336,1718199049912,-500.0,0.00016438,2]
[329244338,1718199049923,-500.0,0.00016438,2]
[329244340,1718199049933,-500.0,0.00016438,2]
[329244342,1718199049945,-500.0,0.00016438,2]
[329244344,1718199049957,-500.0,0.00016438,2]
[329244346,1718199049969,-500.0,0.00016438,2]
[329244348,1718199049981,-500.0,0.00016438,2]
[329244350,1718199049992,-500.0,0.00016438,2]